Cogmind - Beta 14 *** ADVENTURER MODE // 2024.09.06 @ 23:21:00 Player: Mbreton Result: Destroyed by G-47 Trooper with Particle Gun Performance ------------- Evolutions (2) 1000 Regions Visited (3) 600 Robots Destroyed (46) 230 Value Destroyed (1569) 1569 Prototype IDs (3) 60 Alien Tech Used (0) 0 Bonus (0) 0 TOTAL SCORE: 3459 Bonus ------- None Cogmind --------- Core Integrity 0/550 Matter 247/300 Energy 99/100 System Corruption 0% Temperature Cool (9) Movement Core (50) Location -8/Materials Parts ------- > --- POWER (1) -------- (None) > --- PROPULSION (3) --- (None) > --- UTILITY (5) ------ Signal Interpreter > --- WEAPON (2) ------- (None) > --- INVENTORY (5) ---- Improved Carbon-fiber Leg Medium Storage Unit Large Storage Unit Shield Generator Datajack Peak State ------------ > --- POWER ------------ Light Ion Engine > --- PROPULSION ------- VSS Leg Improved Carbon-fiber Leg Improved Carbon-fiber Leg > --- UTILITY ---------- Medium Storage Unit Sensor Array Signal Interpreter Light Armor Plating Hacking Suite > --- WEAPON ----------- Ion Cannon Improved Light Cannon > --- INVENTORY -------- Improved Carbon-fiber Leg Large Storage Unit Weight Redist. System Light Armor Plating Shield Generator Datajack Mining Claw [Rating: 25] Favorites ----------- Power Light Ion Engine Engine Light Ion Engine Power Core Light Nuclear Core Propulsion Hover Unit Leg Aluminum Leg Wheel Wheel Hover Unit Hover Unit Utility Signal Interpreter Device Sensor Array Storage Medium Storage Unit Processor Signal Interpreter Hackware Hacking Suite Protection Light Armor Plating Weapon Heavy EM Shotgun Energy Gun Heavy EM Shotgun Energy Cannon Ion Cannon Ballistic Gun Assault Rifle Ballistic Cannon Improved Light Cannon Launcher Grenade Launcher Slashing Weapon Mining Claw Special Melee Weapon Datajack Build | -11 -10 -9 -8 ------- Run | Yrd Mat Mat Mat Slots Evolved 4 | . . 2 2 Power . | . . . . Propulsion 1 | . . 1 . Utility 3 | . . 1 2 Weapon . | . . . . Parts Attached 53 | 5 9 22 17 Power 4 | 1 . 2 1 Engine 3 | 1 . 2 . Core 1 | . . . 1 Reactor . | . . . . Propulsion 23 | 2 4 11 6 Treads . | . . . . Leg 6 | . . 3 3 Wheel 2 | 2 . . . Hover 15 | . 4 8 3 Flight . | . . . . Utility 9 | . 2 4 3 Device 2 | . . 1 1 Storage 2 | . 1 1 . Processor 3 | . 1 1 1 Hackware 1 | . . 1 . Protection 1 | . . . 1 Artifact . | . . . . Weapon 17 | 2 3 5 7 Energy Gun 5 | 2 1 2 . Energy Cannon 3 | . . 1 2 Ballistic Gun 3 | . 2 . 1 Ballistic Cannon 1 | . . . 1 Launcher 2 | . . 2 . Special Weapon . | . . . . Impact Weapon . | . . . . Slashing Weapon 2 | . . . 2 Piercing Weapon . | . . . . Special Melee Weapon 1 | . . . 1 Unidentified Prototypes 1 | . . 1 . Parts Lost 27 | . . 10 17 Power 4 | . . 2 2 Propulsion 12 | . . 6 6 Utility 4 | . . . 4 Weapon 7 | . . 2 5 Highest Loss Streak 7 | . . 3 7 To Critical Strikes . | . . . . Average Slot Usage (%) 89 | . 93 93 70 Engine 10 | . 14 10 2 Leg 5 | . . 4 13 Wheel 1 | . 7 . . Hover 19 | . 18 24 6 Device 4 | . . 6 4 Storage 11 | . 14 11 8 Processor 10 | . 10 11 10 Hackware 4 | . . 4 8 Energy Gun 12 | . 19 13 . Energy Cannon 2 | . . 4 2 Ballistic Gun 2 | . 8 . 1 Launcher 1 | . . 2 2 Peak Build Rating 25 | 5 8 18 25 Average Rating 12 | 2 7 13 16 On Entrance 6 | . 5 8 11 Naked Turns . | . . . . Heaviest Build 26 | 6 12 26 24 Greatest Support 48 | 20 20 30 48 Greatest Overweight (x) 5 | . . 5 4 Average Overweight (x) . | . . . . Largest Inventory Capacity 10 | 5 8 10 10 Average Capacity 9 | 5 8 9 9 Most Carried 10 | 5 8 10 10 Average Carried 7 | 2 4 8 7 Final Capacity 10 | 5 8 10 5 Final Carried 9 | 2 8 9 5 Class Distribution -------------------- 47% | Mutant 36% | Scavenger-Mutant 15% | Hacker-Mutant Dominant Class ---------------- Mutant | -10/Materials Scavenger-Mutant | -9/Materials Hacker-Mutant | -8/Materials Resources | -11 -10 -9 -8 ----------- Run | Yrd Mat Mat Mat Matter Collected 788 | 250 120 242 176 Remotely . | . . . . Salvage Created 1761 | . 350 964 447 Parts 109 | . 20 73 16 Haulers Intercepted 1 | . . 1 . Recyclers Shooed . | . . . . Parts Field Recycled . | . . . . Retrieved Matter . | . . . . Parts Self-Destructed . | . . . . Prevented . | . . . . Kills | -11 -10 -9 -8 ------- Run | Yrd Mat Mat Mat Combat Hostiles Destroyed 38 | . 9 19 10 Melee 1 | . . . 1 Guns 24 | . 9 13 2 Cannons 7 | . . 3 4 AOE 5 | . . 2 3 Classes Destroyed 11 | . 3 6 2 Worker 1 | . . 1 . Builder 1 | . . . 1 Hauler 1 | . . 1 . Operator 3 | . . 3 . Watcher 2 | . 2 . . Swarmer 4 | . 3 1 . Grunt 23 | . 6 10 7 Brawler 2 | . . 2 . Duelist 1 | . . 1 . Sentry 6 | . . 5 1 Hunter 2 | . . . 2 Best Kill Streak 4 | . 4 4 4 Combat Bots Only 4 | . 4 4 4 Max Kills in Single Turn 2 | . 1 2 2 Gunslinging . | . . . . Exploded 2 | . . 1 2 Melee 1 | . . . 1 Uniques/NPCs Destroyed . | . . . . Combat | -11 -10 -9 -8 -------- Run | Yrd Mat Mat Mat Hostile Shots Fired 343 | . 33 116 194 Missed 109 | . 8 43 58 Damage Taken 2758 | . 222 825 1711 Core 744 | . 24 161 559 Absorbed by Shields . | . . . . Ignored by Resistances 809 | . 71 243 495 Regen/Repaired (Parts) 61 | . 32 29 . Core Remaining (%) 83 | 100 90 59 . Volleys Fired 104 | . 21 48 35 Largest 2 | . 2 2 2 Hottest 110 | . 90 110 99 Shots Fired 172 | . 42 84 46 Gun 126 | . 42 66 18 Cannon 39 | . . 14 25 Launcher 7 | . . 4 3 Special . | . . . . Kinetic 40 | . 14 . 26 Thermal 79 | . 28 34 17 Explosive 7 | . . 4 3 Electromagnetic 46 | . . 46 . Robot Hit Streak 20 | . 20 20 12 Robot Miss Streak 2 | . 2 2 2 Penetration Max 1 | . . . 1 Secondary Targets 2 | . 1 1 . Max Gunslinging Chain 1 | . 1 1 . Shots Hit Robots 147 | . 33 68 46 Core Hits 80 | . 18 38 24 Critical Kills . | . . . . Critical Parts Destroyed . | . . . . Critical Strikes 3 | . 1 1 1 Burn 2 | . 1 1 . Blast 1 | . . . 1 Melee Attacks 20 | . . . 20 Impact . | . . . . Slashing 20 | . . . 20 Piercing . | . . . . Sneak Attacks . | . . . . Combat Hostiles . | . . . . Follow-up Attacks . | . . . . Damage Inflicted 3356 | . 401 1647 1308 Guns 1764 | . 401 988 375 Cannons 630 | . . 185 445 Explosions 723 | . . 474 249 Melee 239 | . . . 239 Ramming . | . . . . Kinetic 625 | . 106 . 519 Thermal 1280 | . 295 684 301 Explosive 450 | . . 201 249 Electromagnetic 762 | . . 762 . Impact . | . . . . Slashing 239 | . . . 239 Piercing . | . . . . Highest Corruption . | . . . . Average Corruption . | . . . . Corruption Purged . | . . . . Corruption Blocked . | . . . . Overload Shots . | . . . . Overflow Damage 4 | . . . 4 Projectiles . | . . . . Explosions 4 | . . . 4 Melee . | . . . . Knockbacks 1 | . . . 1 Impact . | . . . . Kinetic 1 | . . . 1 Secondary . | . . . . Self-Inflicted Damage 119 | . . 119 . Shots 4 | . . 4 . Rammed . | . . . . Targets Rammed . | . . . . Kicked . | . . . . Crushed . | . . . . Highest Temperature 462 | . 201 462 80 Average Temperature 73 | . 66 88 28 Received Heat Transfer 1476 | . 147 393 936 Effects 1 | . . 1 . Shutdowns 1 | . . 1 . Siege Activations . | . . . . Robots Corrupted 1 | . . 1 . Combat Hostiles 1 | . . 1 . Parts Fried 4 | . . 4 . Impact Corruptions . | . . . . Robots Melted . | . . . . Combat Hostiles . | . . . . Parts Melted 1 | . . 1 . Heat Transferred 2819 | . 902 1436 481 Parts Sabotaged . | . . . . Parts Stolen . | . . . . Parts Stripped . | . . . . Power Chain Reactions 3 | . . 3 . Alert | -11 -10 -9 -8 ------- Run | Yrd Mat Mat Mat Peak Influence 394 | . 319 387 394 Initial 96 | . . 50 96 Average 190 | . 156 198 230 Maximum Alert Level 1 | . 1 1 1 Low Security (%) 55 | 100 67 58 26 Level 1 44 | . 32 41 73 Level 2 . | . . . . Level 3 . | . . . . Level 4 . | . . . . Level 5 . | . . . . High Security . | . . . . Max Security . | . . . . Squads Dispatched 6 | . 1 3 2 Investigation 1 | . 1 . . Extermination . | . . . . Reinforcement 5 | . . 3 2 Assault . | . . . . Garrison . | . . . . Intercept . | . . . . Searches Triggered . | . . . . Construction Impeded . | . . . . Haulers Reinforced . | . . . . Active Scanning Responses . | . . . . Cargo Convoy Interrupts . | . . . . Stealth | -11 -10 -9 -8 --------- Run | Yrd Mat Mat Mat Distress Signals 8 | . 1 4 3 Communications Jammed . | . . . . Distress Signals . | . . . . Times Spotted 101 | . 18 43 40 Peak Tracking Total 15 | . 4 6 15 Tactical Retreats 7 | . 1 5 1 Traps | -11 -10 -9 -8 ------- Run | Yrd Mat Mat Mat Traps Triggered 1 | . 1 . . Indirectly . | . . . . Trap Hack Attempts . | . . . . Triggered . | . . . . Disarmed . | . . . . Reprogrammed . | . . . . Reused . | . . . . Traps Extracted . | . . . . Installed . | . . . . Triggered . | . . . . Machines | -11 -10 -9 -8 ---------- Run | Yrd Mat Mat Mat Machines Disabled 3 | . . 3 . Max in Single Turn 1 | . . 1 . Machines Repaired . | . . . . Machines Dismantled . | . . . . Machines Sabotaged . | . . . . Overloaded Fab Kills . | . . . . Hacking | -11 -10 -9 -8 --------- Run | Yrd Mat Mat Mat Machines Accessed 17 | . 5 10 2 Terminals 9 | . 2 5 2 Fabricators . | . . . . Repair Stations 3 | . 1 2 . Recycling Units 3 | . 2 1 . Scanalyzers 2 | . . 2 . Garrison Access . | . . . . Total Hacks 46 | . 11 31 4 Successful 36 | . 8 24 4 Failed 10 | . 3 7 . Catastrophic 1 | . . 1 . Database Lockouts . | . . . . Manual . | . . . . Terminals 20 | . 5 11 4 Fabricators . | . . . . Repair Stations 10 | . 4 6 . Recycling Units 3 | . 2 1 . Scanalyzers 13 | . . 13 . Garrison Access . | . . . . Terminal Hacks 11 | . 2 5 4 Prototype ID Bank 1 | . . . 1 Repair Station Index 2 | . 1 1 . Scanalyzer Index 1 | . . 1 . Alert Level 3 | . . 2 1 Locate Traps 1 | . . . 1 Dispatch Records 1 | . . 1 . Registered Prototypes 1 | . . . 1 Zone Layout 1 | . 1 . . Fabricator Hacks . | . . . . Repair Station Hacks 9 | . 4 5 . Scan Component 5 | . 2 3 . Repair 4 | . 2 2 . Recycling Unit Hacks 3 | . 2 1 . Report Inventory 3 | . 2 1 . Scanalyzer 13 | . . 13 . Insert Component 7 | . . 7 . Analyze 6 | . . 6 . Garrison Access Hacks . | . . . . Unauthorized Hacks . | . . . . Terminals . | . . . . Fabricators . | . . . . Repair Stations . | . . . . Recycling Units . | . . . . Scanalyzers . | . . . . Garrison Access . | . . . . Data Cores Recovered 2 | . . 2 . Used 2 | . . 2 . Hacking Detections 13 | . 3 9 1 Full Trace Events . | . . . . Feedback Events . | . . . . Feedback Blocked . | . . . . Robot Schematics Acquired . | . . . . Robots Built . | . . . . Authchips . | . . . . Time . | . . . . Total Robot Build Rating . | . . . . Part Schematics Acquired 5 | . . 5 . Parts Built . | . . . . Authchips . | . . . . Time . | . . . . Total Part Build Rating . | . . . . Parts Repaired 4 | . 2 2 . Time 114 | . 52 62 . Parts Recycled . | . . . . Recycled Matter . | . . . . Retrieved Matter . | . . . . Retrieved Components . | . . . . Parts Scanalyzed 5 | . . 5 . Part Schematics Acquired 5 | . . 5 . Parts Damaged 1 | . . 1 . Bothacking | -11 -10 -9 -8 ------------ Run | Yrd Mat Mat Mat Used RIF Installer . | . . . . Robots Hacked . | . . . . Non-combat . | . . . . Combat . | . . . . Robot Hacks Applied . | . . . . Relay Couplers Released . | . . . . Fabnet Peak Effective % . | . . . . Robots Rewired . | . . . . Allies Hacked . | . . . . Hacks Repelled . | . . . . Allies | -11 -10 -9 -8 -------- Run | Yrd Mat Mat Mat Total Allies . | . . . . Largest Group . | . . . . Highest-Rated Group . | . . . . Highest-Rated Ally . | . . . . Total Orders . | . . . . Ally Attacks . | . . . . Total Damage . | . . . . Kills . | . . . . Allies Corrupted . | . . . . Allies Melted . | . . . . Intel | -11 -10 -9 -8 ------- Run | Yrd Mat Mat Mat Robot Analysis Total . | . . . . Derelict Logs Recovered . | . . . . Drone Launches . | . . . . Drone Recoveries . | . . . . Exploration | -11 -10 -9 -8 ------------- Run | Yrd Mat Mat Mat Turns Passed 2170 | 37 505 1248 380 Spaces Moved 1653 | 34 526 885 208 Core 32 | 6 . 1 25 Treads . | . . . . Legs 264 | . . 166 98 Wheels 147 | 28 119 . . Hover 1210 | . 407 718 85 Flight . | . . . . Fastest Speed 50 | 50 56 52 50 Average Speed 90 | 74 61 106 95 Slowest Speed 300 | 80 80 300 250 Overloaded Moves . | . . . . Propulsion Burnouts . | . . . . Robots Hopped . | . . . . Cave-ins Triggered . | . . . . Exploration Rate (%) 41 | 3 68 71 24 Regions Visited 3 Branch Regions . Pre-discovered Areas . | . . . . Known Exits Taken 1 | . . 1 . Unknown Exits Taken 2 | 1 1 . . Scrap Searched . | . . . . Spaces Dug 12 | . . 5 7 Terrain Destroyed 75 | . . 50 25 Melee 7 | . . . 7 Projectile . | . . . . AOE 68 | . . 50 18 Terrain Rammed . | . . . . Walls Destroyed . | . . . . Machines Disabled . | . . . . Actions | -11 -10 -9 -8 --------- Run | Yrd Mat Mat Mat Total 2120 | 45 663 1106 306 Wait 218 | . 94 119 5 Move 1650 | 33 525 884 208 Hop . | . . . . Pick Up 55 | 7 12 23 13 Fast Attach . | . . . . Attach 34 | 5 4 14 11 Detach 3 | . . 2 1 Swap 19 | . 5 8 6 Drop 17 | . 2 8 7 Fire 104 | . 21 48 35 Melee 20 | . . . 20 Ram . | . . . . Kick . | . . . . Crush . | . . . . Escape Stasis . | . . . . Rewire . | . . . . Trap . | . . . . Miscellaneous . | . . . . Route ------- -11/Scrapyard -10/Materials (discovered 4 exits: *Mat x3 / [*Min]) -9/Materials -8/Materials (discovered 1 exit: [*Sto]) History --------- Turn | Location | Event 11 | -11/Scrapyard | Discovered new exit (range 16) 38 | -11/Scrapyard | Entered Materials 318 | -10/Materials | Build established: Mutant 324 | -10/Materials | Discovered new exit (range 17) 348 | -10/Materials | Discovered new exit (range 3) 389 | -10/Materials | Discovered new exit (range 10) 416 | -10/Materials | Discovered new exit (range 12) 466 | -10/Materials | Repaired Hover Unit 493 | -10/Materials | Repaired Hover Unit 543 | -10/Materials | Entered another Materials area 543 | -9/Materials | Evolved 2 slots: Propulsion x1, Utility x1 809 | -9/Materials | Repaired Hover Unit 1231 | -9/Materials | Discovered new exit (range 10) 1495 | -9/Materials | Lost 3 parts (1p2n) 1564 | -9/Materials | Lost 3 parts (2n1w) 1606 | -9/Materials | Repaired Broken Grenade Launcher 1790 | -9/Materials | Identified exit to Materials 1791 | -9/Materials | Entered another Materials area 1791 | -8/Materials | Evolved 2 slots: Utility x2 1852 | -8/Materials | Build established: Scavenger-Mutant 1997 | -8/Materials | Lost 3 parts (1n1u1w) 2042 | -8/Materials | Lost 4 parts (2n1u1w) 2121 | -8/Materials | Discovered new exit (range 16) 2149 | -8/Materials | Core integrity fell below 50% 2161 | -8/Materials | Core integrity fell below 20% 2171 | -8/Materials | Destroyed by G-47 Trooper with Particle Gun Last Messages --------------- K-01 Serf collects debris. Material Processor disabled. Critical hit (Burn: +37). Airjet destroyed. K-01 Serf collects debris. [Achievement: Part-time Excavator] Airjet destroyed. Lgt. Nuclear Core destroyed. Targeting Computer destroyed. Critical hit (Burn: +37). K-01 Serf collects debris. U-05 Engineer builds a Wall. Hacking Suite destroyed. Mining Claw destroyed. Dropped Weight Redist. System. Dropped Lgt. Armor Plating. M-13 Machinist repairs G-47 Trooper. Critical hit (Burn: +37). M-13 Machinist repairs L-31 Rogue. R-06 Scavenger collects Lgt. Armor Plating. Map ----- +----------------------------------------------------+ | ?????????????????????????????????????????????????? | | ?????????????? ]????????????????????????????????? | | ?????????????? < ???????????????????????????????? | | ????????????? ???????????????????????????????? | | ????????????? ???????????????????????????????? | | ?????????????# #???????????????????????????????? | | ?????????????# #???????????????????????????????? | | ?????????????# #???????????????????????????????? | | ?????????????# #???????????????????????????????? | | ?????????????# #???????????????????????????????? | | ?????????????# #??#####????????????????????????? | | ?????????????# #? ! !#????????????????????????? | | ?????????????# #?" #????????????????????????? | | ?????????????# # T ] #????????????????????????? | | ?????######### # " #???????????? ???????????? | | ?????# ! + / #???##?????? ????????????? | | ?????# # # !#??? #????? ?????????????? | | ?????# !# ########### ##### ??????????????? | | ?????#####"### ???????????? | | ??????####"################ ???????????? | | ??????# # ! r # ?????????????????? | | ??????# "" # g"" # #??????????????????? | | ??????#""""" # mT" # #??????????????????? | | ??????#""""" *# l"" # #??????????????????? | | ??????#""""" #g g + #??????????????????? | | ??????# """ #gg"""g@# #??????????????????? | | ??????# [ # b""" # #??????????????????? | | ??????######+###### """ # #??????????????????? | | ?????????? ????# g # #??????????????????? | | ?????????## ????# # #??????????????????? | | ??????????# ????######### #??????????????????? | | ??????????# ????????????# #??????????????????? | | ??????????# ????????????# #??????????????????? | | ??????????# ????????????# #??????????????????? | | ??????????# ????????????# #??????????????????? | | ??????????# ????????????### #??????????????????? | | ??????????+ ??????????????#[#??????????????????? | | ??????????? ??????????????# #??????????????????? | | ????????????????????????????# #??????????????????? | | ????????????????????????????# #?????#????????????? | | ????????????????????????????# #????? ????????????? | | ????????????????????????????#=#????? ????????????? | | ????????????????????????????# #????# ????????????? | | ????????????????????????????#!###??# ????????????? | | ????????????????????????????# #??# #???????????? | | ????????????????????????????# #??# #???????????? | | ????????????????????????????# #??# #???????????? | | ????????????????????????????# #### ####????????? | | ????????????????????????????# ## # # ####?????? | | ????????????????????????????# # #%## **#?????? | +----------------------------------------------------+ Best States ------------- Heat Dissipation 31 Energy Generation 14 Energy Capacity 250 Matter Stores 300 Matter Capacity 300 Sight Range 18 Robot Scan Range 14 Terrain Scan Density 10 Armor Coverage 150 Resistance: KI 20 Resistance: TH 20 Resistance: EX 20 Resistance: EM 20 Resistance: I 20 Resistance: S 20 Resistance: P 20 Evasion (%) 55 Targeting Accuracy 5 Offensive Hacking 20 Item Schematics ----------------- Sensor Array | -9/Materials | Scanalyzed Weight Redist. System | -9/Materials | Scanalyzed Grenade Launcher | -9/Materials | Scanalyzed Lgt. Armor Plating | -9/Materials | Scanalyzed Hover Unit | -9/Materials | Scanalyzed Robot Schematics ------------------ None Fabricated ------------ Nothing Alien Tech Used ----------------- None Achievements -------------- Part-time Excavator Challenges ------------ None Game ------ Seed MetafieldCouplerMachine Manual? 0 Play Time 00:42:14 Cumulative 20.8 hours Start 2024.09.06 @ 22:36:45 End 2024.09.06 @ 23:21:00 Sessions 1 Manual Loads 0 Difficulty Adventurer Special Mode None Game No. 15 Rogue 0 Adventurer 15 Explorer 0 Win Type - Total 0 Types 0/0/0/0/0/0/0/0/0 Lore% 8 Gallery% 21 Achievement% 20 Wizard Run 0 Options --------- Layout 1 ASCII 0 Keyboard 0 Movement Mouse Keybinds 0 Fullscreen 1 Font 32/SmallcapsGlow Map View 50x35 Zoom Use 22% Tactical HUD 0 Map Filters NONE Filters NONE Steam 1 RUN: 969eb7dd-cfbf-4f97-9cbc-f19f144e8858